Cogmind - Beta 13 @@@ ROGUE MODE // 2024.04.04 @ 14:12:08 Player: JackieG Result: Destroyed by H-55 Commando with Assault Rifle Performance ------------- Evolutions (2) 1000 Regions Visited (4) 800 Robots Destroyed (18) 90 Value Destroyed (501) 501 Prototype IDs (0) 0 Alien Tech Used (0) 0 Bonus (-38) -38 TOTAL SCORE: 2353 Bonus ------- Friendly Fire -38 Cogmind --------- Core Integrity 0/550 Matter 295/300 Energy 99/100 System Corruption 0% Temperature Cool (0) Movement Core (100) Ox1 Location -8/Materials Parts ------- > --- POWER (1) -------- (None) > --- PROPULSION (3) --- (None) > --- UTILITY (3) ------ Small Storage Unit > --- WEAPON (4) ------- (None) > --- INVENTORY (8) ---- Subdweller Power Source Aluminum Leg Improved Heat Sink Peak State ------------ > --- POWER ------------ Makeshift Power Source > --- PROPULSION ------- Wheel Wheel > --- UTILITY ---------- Small Storage Unit Makeshift Light Armor Plating > --- WEAPON ----------- Particle Gun Subdweller Machine Gun > --- INVENTORY -------- Subdweller Power Source Aluminum Leg Improved Heat Sink Small Laser Rocket Launcher [Rating: 15] Favorites ----------- Power Ion Engine Engine Ion Engine Propulsion Light Treads Treads Light Treads Leg Aluminum Leg Wheel Wheel Utility Small Storage Unit Device Improved Heat Sink Storage Small Storage Unit Protection Makeshift Light Armor Plating Weapon Medium Laser Energy Gun Medium Laser Ballistic Gun Subdweller Machine Gun Launcher Rocket Launcher Special Weapon Enhanced Flamer Build | -11 -10 -10 -10 -8 ------- Run | Yrd Mat Min Sub Mat Slots Evolved 4 | . . . . 4 Power . | . . . . . Propulsion 1 | . . . . 1 Utility 1 | . . . . 1 Weapon 2 | . . . . 2 Parts Attached 25 | 5 5 3 12 . Power 4 | . 1 2 1 . Engine 4 | . 1 2 1 . Core . | . . . . . Reactor . | . . . . . Propulsion 6 | 2 . . 4 . Treads 2 | 2 . . . . Leg 1 | . . . 1 . Wheel 3 | . . . 3 . Hover . | . . . . . Flight . | . . . . . Utility 4 | 1 1 . 2 . Device 1 | . 1 . . . Storage 2 | 1 . . 1 . Processor . | . . . . . Hackware . | . . . . . Protection 1 | . . . 1 . Artifact . | . . . . . Weapon 11 | 2 3 1 5 . Energy Gun 7 | 2 3 . 2 . Energy Cannon . | . . . . . Ballistic Gun 1 | . . . 1 . Ballistic Cannon . | . . . . . Launcher 2 | . . 1 1 . Special Weapon 1 | . . . 1 . Impact Weapon . | . . . . . Slashing Weapon . | . . . . . Piercing Weapon . | . . . . . Special Melee Weapon . | . . . . . Unidentified Prototypes . | . . . . . Parts Lost 13 | . 2 . 6 5 Power 1 | . . . . 1 Propulsion 5 | . 1 . 3 1 Utility 1 | . . . . 1 Weapon 6 | . 1 . 3 2 Highest Loss Streak 5 | . 2 . 4 5 To Critical Strikes . | . . . . . Average Slot Usage (%) 73 | . 76 85 72 36 Engine 8 | . 3 14 8 4 Treads 10 | . 25 14 3 . Leg 2 | . . . 5 . Wheel 3 | . . . 5 4 Device 8 | . 4 14 9 . Storage 10 | . 14 14 8 9 Protection 2 | . . . 4 8 Energy Gun 18 | . 27 23 15 5 Ballistic Gun 2 | . . . 5 . Launcher 3 | . . 4 4 . Naked Turns . | . . . . . Heaviest Build 21 | 8 14 17 21 16 Greatest Support 40 | 40 40 20 20 20 Greatest Overweight (x) 5 | . . . 5 3 Average Overweight (x) . | . . . . . Largest Inventory Capacity 8 | 8 8 8 8 8 Average Capacity 7 | 7 8 8 6 8 Most Carried 7 | 4 4 5 7 3 Average Carried 3 | . 2 4 4 3 Final Capacity 8 | 8 8 8 8 8 Final Carried 5 | . 3 5 3 3 Class Distribution -------------------- 95% | Mutant 4% | Scavenger-Mutant Dominant Class ---------------- Mutant | -10/Materials Mutant | -10/Mines Mutant | -10/Subcaves Mutant | -8/Materials Resources | -11 -10 -10 -10 -8 ----------- Run | Yrd Mat Min Sub Mat Matter Collected 444 | 209 91 20 124 . Remotely . | . . . . . Salvage Created 577 | . 395 95 87 . Parts 20 | . 14 1 5 . Haulers Intercepted . | . . . . . Recyclers Shooed . | . . . . . Parts Field Recycled . | . . . . . Retrieved Matter . | . . . . . Parts Self-Destructed 10 | . . . 10 . Prevented . | . . . . . Kills | -11 -10 -10 -10 -8 ------- Run | Yrd Mat Min Sub Mat Combat Hostiles Destroyed 17 | . 10 2 5 . Guns 14 | . 8 2 4 . AOE 1 | . . . 1 . Classes Destroyed 4 | . 3 . 1 . Recycler 1 | . 1 . . . Swarmer 6 | . 3 . 3 . Grunt 9 | . 7 2 . . Subdweller 2 | . . . 2 . Best Kill Streak 6 | . 6 2 3 . Combat Bots Only 4 | . 4 2 3 . Max Kills in Single Turn 2 | . 2 1 1 . Gunslinging 1 | . 1 . . . Exploded 1 | . . . 1 . Melee . | . . . . . Uniques/NPCs Destroyed . | . . . . . Combat | -11 -10 -10 -10 -8 -------- Run | Yrd Mat Min Sub Mat Hostile Shots Fired 219 | . 58 8 50 103 Missed 44 | . 14 1 10 19 Damage Taken 2350 | . 525 108 539 1178 Core 794 | . 136 . 102 556 Absorbed by Shields . | . . . . . Core Remaining (%) 52 | 100 . . 4 . Volleys Fired 77 | . 40 8 21 8 Largest 2 | . 2 2 2 2 Hottest 120 | . 115 115 63 120 Shots Fired 123 | . 74 16 24 9 Gun 118 | . 74 16 20 8 Cannon . | . . . . . Launcher 4 | . . . 4 . Special 1 | . . . . 1 Kinetic 5 | . . . 5 . Thermal 114 | . 74 16 15 9 Explosive 4 | . . . 4 . Electromagnetic . | . . . . . Robot Hit Streak 10 | . 10 7 10 2 Robot Miss Streak 3 | . 3 2 3 3 Penetration Max . | . . . . . Secondary Targets 1 | . 1 . . . Max Gunslinging Chain 1 | . 1 . . . Shots Hit Robots 82 | . 49 12 18 3 Core Hits 33 | . 18 5 7 3 Critical Kills . | . . . . . Critical Parts Destroyed . | . . . . . Critical Strikes 4 | . 3 . 1 . Burn 4 | . 3 . 1 . Melee Attacks . | . . . . . Impact . | . . . . . Slashing . | . . . . . Piercing . | . . . . . Sneak Attacks . | . . . . . Combat Hostiles . | . . . . . Follow-up Attacks . | . . . . . Damage Inflicted 1435 | . 656 160 562 57 Guns 1078 | . 656 160 217 45 Cannons . | . . . . . Explosions 345 | . . . 345 . Melee . | . . . . . Ramming . | . . . . . Kinetic 83 | . . . 83 . Thermal 1007 | . 656 160 134 57 Explosive 345 | . . . 345 . Electromagnetic . | . . . . . Impact . | . . . . . Slashing . | . . . . . Piercing . | . . . . . Highest Corruption . | . . . . . Average Corruption . | . . . . . Corruption Purged . | . . . . . Corruption Blocked . | . . . . . Overload Shots . | . . . . . Overflow Damage . | . . . . . Projectiles . | . . . . . Explosions . | . . . . . Melee . | . . . . . Knockbacks . | . . . . . Impact . | . . . . . Kinetic . | . . . . . Secondary . | . . . . . Self-Inflicted Damage 50 | . . . 50 . Shots 2 | . . . 2 . Rammed . | . . . . . Targets Rammed . | . . . . . Kicked . | . . . . . Crushed . | . . . . . Highest Temperature 400 | . 400 135 . 253 Average Temperature 115 | . 127 61 . 105 Received Heat Transfer 1020 | . 288 63 84 585 Effects 1 | . . . . 1 Interference 1 | . . . . 1 Siege Activations . | . . . . . Robots Corrupted . | . . . . . Combat Hostiles . | . . . . . Parts Fried . | . . . . . Impact Corruptions . | . . . . . Robots Melted 2 | . 2 . . . Combat Hostiles 2 | . 2 . . . Parts Melted 9 | . 7 2 . . Heat Transferred 2946 | . 1901 444 421 180 Parts Sabotaged . | . . . . . Parts Stolen . | . . . . . Parts Stripped . | . . . . . Power Chain Reactions . | . . . . . Alert | -11 -10 -10 -10 -8 ------- Run | Yrd Mat Min Sub Mat Peak Influence 272 | . 272 170 . . Initial 105 | . . 105 . . Average 107 | . 123 155 . . Maximum Alert Level 1 | . 1 . . . Low Security (%) 88 | 100 71 100 . 100 Level 1 11 | . 28 . . . Level 2 . | . . . . . Level 3 . | . . . . . Level 4 . | . . . . . Level 5 . | . . . . . High Security . | . . . . . Max Security . | . . . . . Squads Dispatched 1 | . 1 . . . Investigation . | . . . . . Extermination . | . . . . . Reinforcement 1 | . 1 . . . Assault . | . . . . . Garrison . | . . . . . Intercept . | . . . . . Searches Triggered . | . . . . . Construction Impeded . | . . . . . Haulers Reinforced . | . . . . . Active Scanning Responses . | . . . . . Cargo Convoy Interrupts . | . . . . . Stealth | -11 -10 -10 -10 -8 --------- Run | Yrd Mat Min Sub Mat Distress Signals 1 | . 1 . . . Communications Jammed . | . . . . . Distress Signals . | . . . . . Times Spotted 38 | . 17 2 15 4 Peak Tracking Total 4 | . 4 2 4 4 Tactical Retreats 2 | . . . 2 . Traps | -11 -10 -10 -10 -8 ------- Run | Yrd Mat Min Sub Mat Traps Triggered . | . . . . . Indirectly . | . . . . . Trap Hack Attempts . | . . . . . Triggered . | . . . . . Disarmed . | . . . . . Reprogrammed . | . . . . . Reused . | . . . . . Traps Extracted . | . . . . . Installed . | . . . . . Triggered . | . . . . . Machines | -11 -10 -10 -10 -8 ---------- Run | Yrd Mat Min Sub Mat Machines Disabled 1 | . . 1 . . Max in Single Turn 1 | . . 1 . . Machines Repaired . | . . . . . Machines Dismantled . | . . . . . Machines Sabotaged . | . . . . . Overloaded Fab Kills . | . . . . . Hacking | -11 -10 -10 -10 -8 --------- Run | Yrd Mat Min Sub Mat Machines Accessed . | . . . . . Terminals . | . . . . . Fabricators . | . . . . . Repair Stations . | . . . . . Recycling Units . | . . . . . Scanalyzers . | . . . . . Garrison Access . | . . . . . Total Hacks . | . . . . . Successful . | . . . . . Failed . | . . . . . Catastrophic . | . . . . . Database Lockouts . | . . . . . Manual . | . . . . . Terminals . | . . . . . Fabricators . | . . . . . Repair Stations . | . . . . . Recycling Units . | . . . . . Scanalyzers . | . . . . . Garrison Access . | . . . . . Terminal Hacks . | . . . . . Fabricator Hacks . | . . . . . Repair Station Hacks . | . . . . . Recycling Unit Hacks . | . . . . . Scanalyzer . | . . . . . Garrison Access Hacks . | . . . . . Unauthorized Hacks . | . . . . . Terminals . | . . . . . Fabricators . | . . . . . Repair Stations . | . . . . . Recycling Units . | . . . . . Scanalyzers . | . . . . . Garrison Access . | . . . . . Data Cores Recovered . | . . . . . Used . | . . . . . Hacking Detections . | . . . . . Full Trace Events . | . . . . . Feedback Events . | . . . . . Feedback Blocked . | . . . . . Robot Schematics Acquired . | . . . . . Robots Built . | . . . . . Authchips . | . . . . . Time . | . . . . . Total Robot Build Rating . | . . . . . Part Schematics Acquired . | . . . . . Parts Built . | . . . . . Authchips . | . . . . . Time . | . . . . . Total Part Build Rating . | . . . . . Parts Repaired . | . . . . . Time . | . . . . . Parts Recycled . | . . . . . Recycled Matter . | . . . . . Retrieved Matter . | . . . . . Retrieved Components . | . . . . . Parts Scanalyzed . | . . . . . Part Schematics Acquired . | . . . . . Parts Damaged . | . . . . . Bothacking | -11 -10 -10 -10 -8 ------------ Run | Yrd Mat Min Sub Mat Used RIF Installer . | . . . . . Robots Hacked . | . . . . . Non-combat . | . . . . . Combat . | . . . . . Robot Hacks Applied . | . . . . . Relay Couplers Released . | . . . . . Fabnet Peak Effective % . | . . . . . Robots Rewired . | . . . . . Allies Hacked . | . . . . . Hacks Repelled . | . . . . . Allies | -11 -10 -10 -10 -8 -------- Run | Yrd Mat Min Sub Mat Total Allies 2 | . . 2 . . Largest Group 2 | . . 2 2 . Highest-Rated Group 42 | . . 42 42 . Highest-Rated Ally 31 | . . 31 31 . Total Orders . | . . . . . Ally Attacks 3 | . . . 3 . Total Damage . | . . . . . Kills . | . . . . . Allies Corrupted . | . . . . . Allies Melted . | . . . . . Intel | -11 -10 -10 -10 -8 ------- Run | Yrd Mat Min Sub Mat Robot Analysis Total . | . . . . . Derelict Logs Recovered 2 | . . 1 1 . Drone Launches . | . . . . . Drone Recoveries . | . . . . . Exploration | -11 -10 -10 -10 -8 ------------- Run | Yrd Mat Min Sub Mat Turns Passed 1560 | 78 328 301 748 105 Spaces Moved 965 | 53 122 167 552 71 Core 61 | 14 . . 12 35 Treads 438 | 39 122 167 110 . Legs 245 | . . . 245 . Wheels 221 | . . . 185 36 Hover . | . . . . . Flight . | . . . . . Fastest Speed 50 | 50 160 160 50 100 Average Speed 134 | 130 160 160 122 124 Slowest Speed 300 | 160 160 160 300 200 Overloaded Moves . | . . . . . Propulsion Burnouts . | . . . . . Robots Hopped . | . . . . . Cave-ins Triggered . | . . . . . Exploration Rate (%) 20 | 4 20 33 37 6 Regions Visited 4 Branch Regions 2 Pre-discovered Areas . | . . . . . Known Exits Taken . | . . . . . Unknown Exits Taken 4 | 1 1 1 1 . Scrap Searched 2 | . . . 2 . Spaces Dug . | . . . . . Terrain Destroyed 34 | . . . 34 . Melee . | . . . . . Projectile . | . . . . . AOE 34 | . . . 34 . Terrain Rammed . | . . . . . Walls Destroyed . | . . . . . Machines Disabled . | . . . . . Actions | -11 -10 -10 -10 -8 --------- Run | Yrd Mat Min Sub Mat Total 1104 | 62 179 183 601 79 Wait 14 | . 8 5 1 . Move 961 | 52 121 166 551 71 Hop . | . . . . . Pick Up 19 | 5 5 1 8 . Fast Attach 3 | . 1 . 2 . Attach 15 | 5 2 . 8 . Detach 2 | . . . 2 . Swap 7 | . 2 3 2 . Drop 6 | . . . 6 . Fire 77 | . 40 8 21 8 Melee . | . . . . . Ram . | . . . . . Kick . | . . . . . Crush . | . . . . . Escape Stasis . | . . . . . Rewire . | . . . . . Trap . | . . . . . Miscellaneous . | . . . . . Route ------- -11/Scrapyard -10/Materials -10/Mines (discovered 2 exits: [*Mat] / [*Sub]) -10/Subcaves (discovered 2 exits: *Mat / [*Rec]) -8/Materials History --------- Turn | Location | Event 2 | -11/Scrapyard | Discovered new exit (range 16) 79 | -11/Scrapyard | Entered Materials 240 | -10/Materials | Discovered new exit (range 15) 311 | -10/Materials | Build established: Mutant 353 | -10/Materials | Core integrity fell below 50% 407 | -10/Materials | Entered Mines 487 | -10/Mines | Learned Materials security intel 503 | -10/Mines | Discovered new exit (range 6) 603 | -10/Mines | Received a Rocket Launcher from a helpful Derelict 690 | -10/Mines | Discovered new exit (range 6) 708 | -10/Mines | Entered Subcaves 708 | -10/Subcaves | Accompanied by 2 allies 713 | -10/Subcaves | Led the pair of lost Derelicts to an unsafe place 715 | -10/Subcaves | Learned Materials emergency access door positions 872 | -10/Subcaves | Discovered new exit (range 16) 973 | -10/Subcaves | Shifting Twisted Machinery released Sub. Monowheel 1279 | -10/Subcaves | Ambushed by Subdwellers from Twisted Machinery 1331 | -10/Subcaves | Core integrity fell below 20% 1363 | -10/Subcaves | Lost 4 parts (2n2w) 1413 | -10/Subcaves | Discovered new exit (range 12) 1456 | -10/Subcaves | Entered Materials 1456 | -8/Materials | Evolved 4 slots: Propulsion x1, Utility x1, Weapon x2 1538 | -8/Materials | Core integrity fell below 50% 1556 | -8/Materials | Core integrity fell below 20% 1561 | -8/Materials | Destroyed by H-55 Commando with Assault Rifle Last Messages --------------- Sub. Monowheel destroyed. Slug penetrates Wall. Sml. Laser destroyed. Slug penetrates Wall. Critical hit (Burn: +37). Slug penetrates Wall. M-13 Machinist repairs G-50 Soldier. Slug penetrates Wall. Wall collapses. U-05 Engineer builds a Wall. M-13 Machinist destroyed. Slug penetrates G-50 Soldier. Slug penetrates Atomic Centrifuge. Atomic Centrifuge disabled. Slug penetrates Wall. G-47 Trooper destroyed. Mak. Light Armor Plating destroyed. Critical hit (Burn: +37). Penetrated by Slug. Scanalyzer disabled. Map ----- +----------------------------------------------------+ | ?????????????????????????????????????????????? | | ????????????+?????????????????????+??????????? | | ?????????????????????????????????????????????? | | ?????????????????????????????????????????????? | | ?????????????????????????????????????????????? | | ?????????????????????????????????????????????? | | ?????????????????????????????????????????????? | | ?????????????????????????????????????????????? | | ?????????????????????????????????????????????? | | ?????????????????????????????????????????????? | | ?????????????????????????????????????????????? | | ?????????????????????????????????????????????? | | ?????????????????????????????????????????????? | | ?????????????????? ???????????????????????? | | ?????????????????# ???????????????????????? | | ?????????????????# ???????????????????????? | | ?????????????????# ???????????????????????? | | ?????????????????# ???????????????????????? | | ?????????????????# ???????????????????????? | | ?????????????????# ???????????????????????? | | ?????????????????# ???????????????????????? | | ?????????????????# ##########??????????????? | | ?????????????????# # #??????????????? | | ?????????????????# # "" #??????????????? | | ?????????????????# # ""#??????????????? | | ?????????????????# #* @ S"#??????????????? | | ?????????????????# #h= #??????????????? | | ?????????????????# #gg """ #??????????????? | | ?????????????????+ r%! """ #??????????????? | | ?????????????????# #= " #??????????????? | | ?????????????????# # #??????????????? | | ?????????????????# ############????????????? | | ?????????????????# #????????????? | | ?????????????????# #????????????? | | ?????????????????# #????????????? | | ?????????????????###########+#####???????????? | | ???????????????????????# #???????????? | | ???????????????????????# """ """ #???????????? | | ???????????????????????# """ """ #???????????? | | ???????????????????????# """ """ #???????????? | | ???????????????????????# #???????????? | | ???????????????????????# #???????????? | | ???????????????????????# #???????????? | | ???????????????????????# #???????????? | | ???????????????????????###########???????????? | | ?????????????????????????????????????????????? | | ?????????????????????????????????????????????? | | | | | | | +----------------------------------------------------+ Best States ------------- Heat Dissipation 39 Energy Generation 15 Energy Capacity 250 Matter Stores 300 Matter Capacity 300 Sight Range 16 Terrain Scan Density 10 Armor Coverage 100 Evasion (%) 55 Recoil Reduction 2 Item Schematics ----------------- None Robot Schematics ------------------ None Fabricated ------------ Nothing Alien Tech Used ----------------- None Achievements -------------- Close Call Challenges ------------ None Game ------ Seed TacticalSurgeExoskeleton Manual? 0 Play Time 00:19:51 Cumulative 10.4 hours Start 2024.04.04 @ 11:25:24 End 2024.04.04 @ 14:12:08 Sessions 3 Manual Loads 0 Difficulty Rogue Special Mode None Game No. 9 Rogue 6 Adventurer 3 Explorer 0 Win Type - Total 0 Types 0/0/0/0/0/0/0/0/0 Lore% 17 Gallery% 18 Achievement% 17 Wizard Run 0 Options --------- Layout 1 ASCII 0 Keyboard 0 Movement Arrows Keybinds 0 Fullscreen 1 Font 24/Smallcaps Map View 50x35 Zoom Use 0% Tactical HUD 0 Map Filters NONE Filters NONE Steam 1 RUN: ad9a0a77-5fa8-4e0c-bbc5-06fedcea67d1